[Event "December 12 Late 2023"]
[Site "https://www.chess.com"]
[Date "2023.12.12"]
[Round "6"]
[White "Mejia, Cherry Ann"]
[Black "Shton, Roman"]
[Result "0-1"]
[Board "101"]
[TimeControl "180+1"]
[WhiteFideId "5206880"]
[BlackFideId "14137461"]
[WhiteElo "2284"]
[BlackElo "2490"]
[WhiteTeam "PHI"]
[BlackTeam "UKR"]
[WhiteClock "0:00:00"]
[BlackClock "0:00:58"]

1. e4 {[%clk 0:03:00]}  Nf6 {[%clk 0:02:57]} 2. e5 {[%clk 0:03:00]}  Nd5 {[%clk 0:02:57]} 3. c4 {[%clk 0:03:00]}  Nb6 {[%clk 0:02:57]} 4. d4 {[%clk 0:03:01]}  d6 {[%clk 0:02:58]} 5. exd6 {[%clk 0:03:02]}  cxd6 {[%clk 0:02:58]} 6. Nc3 {[%clk 0:03:02]}  g6 {[%clk 0:02:59]} 7. Be3 {[%clk 0:03:02]}  Bg7 {[%clk 0:03:00]} 8. Rc1 {[%clk 0:03:02]}  Nc6 {[%clk 0:03:01]} 9. Nf3 {[%clk 0:02:56]}  O-O {[%clk 0:02:58]} 10. h3 {[%clk 0:02:56]}  Bf5 {[%clk 0:02:56]} 11. Be2 {[%clk 0:02:55]}  d5 {[%clk 0:02:53]} 12. c5 {[%clk 0:02:55]}  Nc4 {[%clk 0:02:53]} 13. Bxc4 {[%clk 0:02:47]}  dxc4 {[%clk 0:02:54]} 14. d5 {[%clk 0:02:39]}  Nb4 {[%clk 0:02:49]} 15. O-O {[%clk 0:02:31]}  Bd3 {[%clk 0:02:49]} 16. Re1 {[%clk 0:02:31]}  Nxd5 {[%clk 0:02:49]} 17. Bd4 {[%clk 0:02:07]}  Bxd4 {[%clk 0:02:43]} 18. Nxd4 {[%clk 0:02:00]}  Nxc3 {[%clk 0:02:35]} 19. bxc3 {[%clk 0:02:01]}  Rc8 {[%clk 0:02:35]} 20. Qa4 {[%clk 0:01:51]}  Rxc5 {[%clk 0:02:24]} 21. Qxa7 {[%clk 0:01:49]}  Qc7 {[%clk 0:02:25]} 22. Qa3 {[%clk 0:01:15]}  e5 {[%clk 0:02:18]} 23. Nf3 {[%clk 0:01:14]}  Ra5 {[%clk 0:02:09]} 24. Qb2 {[%clk 0:01:08]}  f6 {[%clk 0:02:06]} 25. Re3 {[%clk 0:00:58]}  Rfa8 {[%clk 0:02:05]} 26. Ra1 {[%clk 0:00:57]}  Qc6 {[%clk 0:01:50]} 27. Ne1 {[%clk 0:00:57]}  Bf5 {[%clk 0:01:44]} 28. Nc2 {[%clk 0:00:55]}  Rd8 {[%clk 0:01:38]} 29. Nb4 {[%clk 0:00:54]}  Qd6 {[%clk 0:01:37]} 30. Qe2 {[%clk 0:00:52]}  Bd3 {[%clk 0:01:34]} 31. Qf3 {[%clk 0:00:50]}  Rd7 {[%clk 0:01:28]} 32. Rd1 {[%clk 0:00:45]}  e4 {[%clk 0:01:26]} 33. Rxe4 {[%clk 0:00:35]}  Rf5 {[%clk 0:01:26]} 34. Rd4 {[%clk 0:00:18]}  Qxd4 {[%clk 0:01:12]} 35. Qxf5 {[%clk 0:00:07]}  Bxf5 {[%clk 0:01:08]} 36. cxd4 {[%clk 0:00:05]}  c3 {[%clk 0:01:09]} 37. d5 {[%clk 0:00:04]}  c2 {[%clk 0:01:05]} 38. Rc1 {[%clk 0:00:04]}  Kf8 {[%clk 0:01:06]} 39. Kf1 {[%clk 0:00:03]}  Ke7 {[%clk 0:01:04]} 40. Ke2 {[%clk 0:00:03]}  Kd6 {[%clk 0:01:05]} 41. Kd2 {[%clk 0:00:04]}  Ke5 {[%clk 0:01:01]} 42. Nxc2 {[%clk 0:00:04]}  Rxd5+ {[%clk 0:01:01]} 43. Ke3 {[%clk 0:00:03]}  Rc5 {[%clk 0:01:01]} 44. f4+ {[%clk 0:00:03]}  Kd6 {[%clk 0:01:00]} 45. Rd1+ {[%clk 0:00:04]}  Ke7 {[%clk 0:01:00]} 46. Nd4 {[%clk 0:00:04]}  Bd7 {[%clk 0:00:59]} 47. g4 {[%clk 0:00:02]}  Ra5 {[%clk 0:00:58]} 48. Rd2 {[%clk 0:00:02]}  Ra3+ {[%clk 0:00:59]} 49. Rd3 {[%clk 0:00:01]}  Rxa2 {[%clk 0:00:59]} 50. Nf3 {[%clk 0:00:00]}  Bc6 {[%clk 0:00:58]} 0-1

[Event "December 12 Late 2023"]
[Site "https://www.chess.com"]
[Date "2023.12.12"]
[Round "6"]
[White "Nadera, Barlo A."]
[Black "ChessSG1"]
[Result "0-1"]
[Board "105"]
[TimeControl "180+1"]
[WhiteFideId "5200598"]
[WhiteElo "2194"]
[BlackElo "2480"]
[WhiteTeam "PHI"]
[WhiteClock "0:00:02"]
[BlackClock "0:00:06"]

1. d4 {[%clk 0:02:55]}  d5 {[%clk 0:02:59]} 2. Nf3 {[%clk 0:02:54]}  Nf6 {[%clk 0:02:59]} 3. c4 {[%clk 0:02:54]}  e6 {[%clk 0:02:59]} 4. Bg5 {[%clk 0:02:53]}  dxc4 {[%clk 0:02:57]} 5. Qa4+ {[%clk 0:02:51]}  Bd7 {[%clk 0:02:52]} 6. Qxc4 {[%clk 0:02:50]}  c5 {[%clk 0:02:50]} 7. dxc5 {[%clk 0:02:45]}  Na6 {[%clk 0:02:47]} 8. b4 {[%clk 0:02:42]}  Rc8 {[%clk 0:02:34]} 9. a3 {[%clk 0:02:36]}  h6 {[%clk 0:02:30]} 10. Bh4 {[%clk 0:02:31]}  Nxc5 {[%clk 0:02:17]} 11. bxc5 {[%clk 0:02:26]}  Rxc5 {[%clk 0:02:16]} 12. Qd4 {[%clk 0:02:09]}  Rd5 {[%clk 0:01:52]} 13. Bxf6 {[%clk 0:01:55]}  gxf6 {[%clk 0:01:53]} 14. Qc3 {[%clk 0:01:45]}  Rc5 {[%clk 0:01:44]} 15. Qb2 {[%clk 0:01:41]}  Rb5 {[%clk 0:01:37]} 16. Qc3 {[%clk 0:01:31]}  Rc5 {[%clk 0:01:23]} 17. Qe3 {[%clk 0:01:15]}  Qa5+ {[%clk 0:01:02]} 18. Nbd2 {[%clk 0:01:13]}  f5 {[%clk 0:00:43]} 19. Qb3 {[%clk 0:01:00]}  Bg7 {[%clk 0:00:41]} 20. Rb1 {[%clk 0:01:00]}  O-O {[%clk 0:00:36]} 21. e3 {[%clk 0:01:00]}  Rfc8 {[%clk 0:00:24]} 22. Be2 {[%clk 0:00:51]}  Rc1+ {[%clk 0:00:24]} 23. Bd1 {[%clk 0:00:51]}  Ba4 {[%clk 0:00:22]} 24. Rxc1 {[%clk 0:00:45]}  Rxc1 {[%clk 0:00:20]} 25. O-O {[%clk 0:00:23]}  Bxb3 {[%clk 0:00:19]} 26. Nxb3 {[%clk 0:00:23]}  Qc7 {[%clk 0:00:16]} 27. Nxc1 {[%clk 0:00:23]}  Qxc1 {[%clk 0:00:17]} 28. Be2 {[%clk 0:00:21]}  Qxa3 {[%clk 0:00:17]} 29. Rd1 {[%clk 0:00:18]}  Bf6 {[%clk 0:00:14]} 30. g3 {[%clk 0:00:17]}  a5 {[%clk 0:00:13]} 31. Rd7 {[%clk 0:00:17]}  Qb2 {[%clk 0:00:11]} 32. Bf1 {[%clk 0:00:16]}  a4 {[%clk 0:00:10]} 33. Nd4 {[%clk 0:00:15]}  Bxd4 {[%clk 0:00:06]} 34. exd4 {[%clk 0:00:13]}  a3 {[%clk 0:00:06]} 35. Bg2 {[%clk 0:00:07]}  a2 {[%clk 0:00:06]} 36. Bxb7 {[%clk 0:00:06]}  a1=Q+ {[%clk 0:00:06]} 37. Kg2 {[%clk 0:00:07]}  Qaa2 {[%clk 0:00:05]} 38. Rd8+ {[%clk 0:00:05]}  Kg7 {[%clk 0:00:05]} 39. Kh3 {[%clk 0:00:04]}  Qxf2 {[%clk 0:00:05]} 40. Bg2 {[%clk 0:00:01]}  Qxg2+ {[%clk 0:00:05]} 41. Kh4 {[%clk 0:00:02]}  Qxh2# {[%clk 0:00:06]} 0-1

[Event "December 12 Late 2023"]
[Site "https://www.chess.com"]
[Date "2023.12.12"]
[Round "6"]
[White "Luxama, Jacques Muller"]
[Black "Bogaudinov, Rushan"]
[Result "0-1"]
[Board "107"]
[TimeControl "180+1"]
[WhiteFideId "11900113"]
[BlackFideId "4129288"]
[WhiteElo "2148"]
[BlackElo "2465"]
[WhiteTeam "HAI"]
[BlackTeam "RUS"]
[WhiteClock "0:00:45"]
[BlackClock "0:01:47"]

1. e4 {[%clk 0:02:58]}  e6 {[%clk 0:02:59]} 2. d4 {[%clk 0:02:58]}  a6 {[%clk 0:03:00]} 3. Nc3 {[%clk 0:02:56]}  b5 {[%clk 0:03:00]} 4. a3 {[%clk 0:02:55]}  Bb7 {[%clk 0:03:01]} 5. Bd3 {[%clk 0:02:52]}  c5 {[%clk 0:03:01]} 6. Nf3 {[%clk 0:02:49]}  Nf6 {[%clk 0:02:58]} 7. e5 {[%clk 0:02:45]}  cxd4 {[%clk 0:02:59]} 8. Nxd4 {[%clk 0:02:41]}  Nd5 {[%clk 0:02:56]} 9. Nxd5 {[%clk 0:02:36]}  Bxd5 {[%clk 0:02:56]} 10. O-O {[%clk 0:02:36]}  Be7 {[%clk 0:02:51]} 11. Be3 {[%clk 0:02:30]}  Nc6 {[%clk 0:02:49]} 12. Nxc6 {[%clk 0:02:28]}  dxc6 {[%clk 0:02:48]} 13. b3 {[%clk 0:02:22]}  c5 {[%clk 0:02:46]} 14. c4 {[%clk 0:02:22]}  bxc4 {[%clk 0:02:46]} 15. bxc4 {[%clk 0:02:22]}  Bc6 {[%clk 0:02:46]} 16. Qe2 {[%clk 0:02:22]}  O-O {[%clk 0:02:42]} 17. Rad1 {[%clk 0:02:21]}  Qc7 {[%clk 0:02:42]} 18. f4 {[%clk 0:02:16]}  g6 {[%clk 0:02:40]} 19. Bc1 {[%clk 0:01:49]}  Rfd8 {[%clk 0:02:39]} 20. g4 {[%clk 0:01:44]}  Rd4 {[%clk 0:02:29]} 21. Bb2 {[%clk 0:01:44]}  Rad8 {[%clk 0:02:29]} 22. Bxd4 {[%clk 0:01:43]}  Rxd4 {[%clk 0:02:29]} 23. f5 {[%clk 0:01:42]}  Bg5 {[%clk 0:02:15]} 24. fxe6 {[%clk 0:01:39]}  fxe6 {[%clk 0:02:15]} 25. Rf2 {[%clk 0:01:38]}  Bf4 {[%clk 0:02:05]} 26. Rdf1 {[%clk 0:01:18]}  g5 {[%clk 0:02:03]} 27. Re1 {[%clk 0:01:10]}  Kg7 {[%clk 0:01:58]} 28. h4 {[%clk 0:01:08]}  Bg3 {[%clk 0:01:50]} 29. Ref1 {[%clk 0:00:58]}  Bxf2+ {[%clk 0:01:49]} 30. Qxf2 {[%clk 0:00:58]}  Rxg4+ {[%clk 0:01:48]} 31. Kh2 {[%clk 0:00:54]}  Rxh4+ {[%clk 0:01:48]} 32. Kg3 {[%clk 0:00:45]}  Qxe5+ {[%clk 0:01:47]} 0-1

[Event "December 12 Late 2023"]
[Site "https://www.chess.com"]
[Date "2023.12.12"]
[Round "6"]
[White "Reinecke, Katharina"]
[Black "Nilsson, Joakim"]
[Result "0-1"]
[Board "110"]
[TimeControl "180+1"]
[WhiteFideId "12929727"]
[BlackFideId "1723383"]
[WhiteElo "2021"]
[BlackElo "2431"]
[WhiteTeam "GER"]
[BlackTeam "SWE"]
[WhiteClock "0:00:10"]
[BlackClock "0:00:46"]

1. d4 {[%clk 0:03:00]}  Nf6 {[%clk 0:02:57]} 2. c4 {[%clk 0:02:59]}  e6 {[%clk 0:02:56]} 3. Nf3 {[%clk 0:02:58]}  Bb4+ {[%clk 0:02:56]} 4. Bd2 {[%clk 0:02:57]}  c5 {[%clk 0:02:56]} 5. g3 {[%clk 0:02:54]}  O-O {[%clk 0:02:55]} 6. Bg2 {[%clk 0:02:54]}  Nc6 {[%clk 0:02:53]} 7. O-O {[%clk 0:02:54]}  d6 {[%clk 0:02:45]} 8. a3 {[%clk 0:02:45]}  Bxd2 {[%clk 0:02:44]} 9. Qxd2 {[%clk 0:02:44]}  e5 {[%clk 0:02:42]} 10. dxe5 {[%clk 0:02:11]}  dxe5 {[%clk 0:02:41]} 11. Nc3 {[%clk 0:02:03]}  Bg4 {[%clk 0:02:38]} 12. Qxd8 {[%clk 0:01:57]}  Rfxd8 {[%clk 0:02:37]} 13. Rad1 {[%clk 0:01:55]}  Kf8 {[%clk 0:02:23]} 14. h3 {[%clk 0:01:54]}  Be6 {[%clk 0:02:20]} 15. b3 {[%clk 0:01:44]}  h6 {[%clk 0:02:17]} 16. e3 {[%clk 0:01:42]}  Rac8 {[%clk 0:02:13]} 17. Nb5 {[%clk 0:01:37]}  Ke7 {[%clk 0:02:07]} 18. Nc3 {[%clk 0:01:26]}  Rxd1 {[%clk 0:02:02]} 19. Rxd1 {[%clk 0:01:25]}  Rd8 {[%clk 0:02:02]} 20. Rxd8 {[%clk 0:01:24]}  Kxd8 {[%clk 0:02:03]} 21. Nd2 {[%clk 0:01:22]}  Kc7 {[%clk 0:02:01]} 22. Nd5+ {[%clk 0:01:17]}  Bxd5 {[%clk 0:01:56]} 23. cxd5 {[%clk 0:01:17]}  Ne7 {[%clk 0:01:55]} 24. Nc4 {[%clk 0:01:12]}  Nexd5 {[%clk 0:01:52]} 25. Nxe5 {[%clk 0:01:11]}  Nc3 {[%clk 0:01:47]} 26. Nxf7 {[%clk 0:01:09]}  Nb1 {[%clk 0:01:47]} 27. b4 {[%clk 0:01:04]}  c4 {[%clk 0:01:47]} 28. a4 {[%clk 0:00:45]}  c3 {[%clk 0:01:41]} 29. Ne5 {[%clk 0:00:45]}  c2 {[%clk 0:01:38]} 30. Nd3 {[%clk 0:00:44]}  Nc3 {[%clk 0:01:38]} 31. Kf1 {[%clk 0:00:36]}  Nfd5 {[%clk 0:01:16]} 32. Ke1 {[%clk 0:00:32]}  Nxb4 {[%clk 0:01:16]} 33. Nc1 {[%clk 0:00:27]}  Nxa4 {[%clk 0:01:09]} 34. Kd2 {[%clk 0:00:27]}  Nc5 {[%clk 0:01:03]} 35. f4 {[%clk 0:00:21]}  a5 {[%clk 0:01:03]} 36. e4 {[%clk 0:00:21]}  a4 {[%clk 0:01:02]} 37. Kc3 {[%clk 0:00:20]}  a3 {[%clk 0:01:01]} 38. Kxb4 {[%clk 0:00:19]}  a2 {[%clk 0:00:49]} 39. Nxa2 {[%clk 0:00:19]}  Nd3+ {[%clk 0:00:49]} 40. Kc3 {[%clk 0:00:18]}  c1=Q+ {[%clk 0:00:50]} 41. Nxc1 {[%clk 0:00:18]}  Nxc1 {[%clk 0:00:51]} 42. e5 {[%clk 0:00:17]}  Ne2+ {[%clk 0:00:51]} 43. Kd2 {[%clk 0:00:17]}  Nxg3 {[%clk 0:00:52]} 44. Kc2 {[%clk 0:00:15]}  b5 {[%clk 0:00:50]} 45. Kb3 {[%clk 0:00:15]}  Kb6 {[%clk 0:00:50]} 46. Kb4 {[%clk 0:00:15]}  Ne2 {[%clk 0:00:48]} 47. h4 {[%clk 0:00:14]}  Nxf4 {[%clk 0:00:48]} 48. Be4 {[%clk 0:00:14]}  g5 {[%clk 0:00:46]} 49. hxg5 {[%clk 0:00:13]}  hxg5 {[%clk 0:00:46]} 50. Bf5 {[%clk 0:00:13]}  Nd5+ {[%clk 0:00:46]} 51. Kb3 {[%clk 0:00:11]}  Kc5 {[%clk 0:00:47]} 52. e6 {[%clk 0:00:11]}  Ne7 {[%clk 0:00:47]} 53. Bg4 {[%clk 0:00:11]}  Nc6 {[%clk 0:00:44]} 54. Bf5 {[%clk 0:00:11]}  Nd4+ {[%clk 0:00:44]} 55. Kc3 {[%clk 0:00:11]}  Nxf5 {[%clk 0:00:45]} 56. Kd3 {[%clk 0:00:11]}  Ne7 {[%clk 0:00:45]} 57. Ke3 {[%clk 0:00:11]}  Kd5 {[%clk 0:00:45]} 58. Kf3 {[%clk 0:00:11]}  Kxe6 {[%clk 0:00:46]} 59. Kg4 {[%clk 0:00:10]}  Kf6 {[%clk 0:00:46]} 0-1

[Event "December 12 Late 2023"]
[Site "https://www.chess.com"]
[Date "2023.12.12"]
[Round "6"]
[White "Munoz Sanchez, Miguel"]
[Black "NovakRatko"]
[Result "0-1"]
[Board "111"]
[TimeControl "180+1"]
[WhiteFideId "3600734"]
[WhiteElo "2341"]
[BlackElo "2388"]
[WhiteTeam "ECU"]
[WhiteClock "0:00:00"]
[BlackClock "0:00:18"]

1. e4 {[%clk 0:03:00]}  d5 {[%clk 0:02:58]} 2. exd5 {[%clk 0:02:59]}  c6 {[%clk 0:02:59]} 3. dxc6 {[%clk 0:02:58]}  Nxc6 {[%clk 0:03:00]} 4. Nf3 {[%clk 0:02:55]}  e5 {[%clk 0:03:00]} 5. d3 {[%clk 0:02:52]}  Bc5 {[%clk 0:03:00]} 6. Be2 {[%clk 0:02:52]}  f5 {[%clk 0:03:00]} 7. O-O {[%clk 0:02:51]}  Nf6 {[%clk 0:03:01]} 8. Be3 {[%clk 0:02:48]}  Bxe3 {[%clk 0:03:00]} 9. fxe3 {[%clk 0:02:49]}  Qb6 {[%clk 0:03:01]} 10. Qd2 {[%clk 0:02:47]}  Qxb2 {[%clk 0:02:59]} 11. Nc3 {[%clk 0:02:46]}  O-O {[%clk 0:02:58]} 12. Rab1 {[%clk 0:02:45]}  Qa3 {[%clk 0:02:58]} 13. d4 {[%clk 0:02:34]}  Rd8 {[%clk 0:02:50]} 14. Nb5 {[%clk 0:02:25]}  Qe7 {[%clk 0:02:46]} 15. c4 {[%clk 0:02:14]}  a6 {[%clk 0:02:41]} 16. Nc3 {[%clk 0:02:13]}  exd4 {[%clk 0:02:25]} 17. exd4 {[%clk 0:02:13]}  Ne4 {[%clk 0:02:24]} 18. Nxe4 {[%clk 0:02:03]}  fxe4 {[%clk 0:02:24]} 19. Rbe1 {[%clk 0:01:24]}  exf3 {[%clk 0:02:17]} 20. Bxf3 {[%clk 0:01:24]}  Qh4 {[%clk 0:01:57]} 21. Bd5+ {[%clk 0:01:24]}  Kh8 {[%clk 0:01:57]} 22. Re4 {[%clk 0:01:22]}  Qh6 {[%clk 0:01:37]} 23. Qe2 {[%clk 0:01:13]}  Bd7 {[%clk 0:01:33]} 24. Rf7 {[%clk 0:01:07]}  Qc1+ {[%clk 0:01:17]} 25. Rf1 {[%clk 0:01:00]}  Qg5 {[%clk 0:01:16]} 26. h4 {[%clk 0:00:55]}  Qg3 {[%clk 0:01:07]} 27. Rf3 {[%clk 0:00:51]}  Bg4 {[%clk 0:01:02]} 28. Rxg3 {[%clk 0:00:50]}  Bxe2 {[%clk 0:01:02]} 29. Rxe2 {[%clk 0:00:46]}  Re8 {[%clk 0:00:56]} 30. Rxe8+ {[%clk 0:00:42]}  Rxe8 {[%clk 0:00:56]} 31. Bxc6 {[%clk 0:00:43]}  bxc6 {[%clk 0:00:56]} 32. Kf2 {[%clk 0:00:40]}  Kg8 {[%clk 0:00:55]} 33. Ra3 {[%clk 0:00:35]}  Re4 {[%clk 0:00:54]} 34. Rd3 {[%clk 0:00:33]}  Rxh4 {[%clk 0:00:53]} 35. d5 {[%clk 0:00:32]}  cxd5 {[%clk 0:00:51]} 36. cxd5 {[%clk 0:00:31]}  Kf8 {[%clk 0:00:51]} 37. Ke3 {[%clk 0:00:24]}  Ra4 {[%clk 0:00:50]} 38. a3 {[%clk 0:00:19]}  Ke7 {[%clk 0:00:49]} 39. Rb3 {[%clk 0:00:16]}  Kd6 {[%clk 0:00:47]} 40. Rb7 {[%clk 0:00:16]}  Rxa3+ {[%clk 0:00:46]} 41. Kf4 {[%clk 0:00:16]}  Ra4+ {[%clk 0:00:44]} 42. Ke3 {[%clk 0:00:13]}  Rg4 {[%clk 0:00:43]} 43. Kf3 {[%clk 0:00:12]}  Rg6 {[%clk 0:00:41]} 44. Ke4 {[%clk 0:00:08]}  Rg4+ {[%clk 0:00:33]} 45. Kf3 {[%clk 0:00:05]}  h5 {[%clk 0:00:21]} 46. Rb6+ {[%clk 0:00:04]}  Kxd5 {[%clk 0:00:22]} 47. Rxa6 {[%clk 0:00:04]}  g6 {[%clk 0:00:20]} 48. Ra5+ {[%clk 0:00:04]}  Ke6 {[%clk 0:00:20]} 49. Ra6+ {[%clk 0:00:04]}  Kf5 {[%clk 0:00:20]} 50. g3 {[%clk 0:00:02]}  Rc4 {[%clk 0:00:17]} 51. Ra5+ {[%clk 0:00:02]}  Kf6 {[%clk 0:00:17]} 52. Ra6+ {[%clk 0:00:00]}  Kg7 {[%clk 0:00:18]} 0-1

[Event "December 12 Late 2023"]
[Site "https://www.chess.com"]
[Date "2023.12.12"]
[Round "6"]
[White "Buenafe Moya, Javier"]
[Black "De Souza, Cristiano Gomes"]
[Result "1-0"]
[Board "113"]
[TimeControl "180+1"]
[WhiteFideId "2206412"]
[BlackFideId "2151758"]
[WhiteElo "2376"]
[BlackElo "2236"]
[WhiteTeam "ESP"]
[BlackTeam "BRA"]
[WhiteClock "0:00:26"]
[BlackClock "0:01:06"]

1. c4 {[%clk 0:02:57]}  Nf6 {[%clk 0:02:58]} 2. Nc3 {[%clk 0:02:55]}  g6 {[%clk 0:02:59]} 3. d4 {[%clk 0:02:54]}  d6 {[%clk 0:02:59]} 4. g3 {[%clk 0:02:51]}  Bg7 {[%clk 0:02:59]} 5. Bg2 {[%clk 0:02:51]}  O-O {[%clk 0:03:00]} 6. Nf3 {[%clk 0:02:49]}  Nc6 {[%clk 0:03:00]} 7. O-O {[%clk 0:02:48]}  Bf5 {[%clk 0:02:59]} 8. b3 {[%clk 0:02:41]}  Ne4 {[%clk 0:02:58]} 9. Nd5 {[%clk 0:02:37]}  Bd7 {[%clk 0:02:56]} 10. Bb2 {[%clk 0:02:35]}  e6 {[%clk 0:02:55]} 11. Nf4 {[%clk 0:02:33]}  f5 {[%clk 0:02:55]} 12. Qc2 {[%clk 0:02:29]}  g5 {[%clk 0:02:51]} 13. d5 {[%clk 0:02:25]}  gxf4 {[%clk 0:02:40]} 14. dxc6 {[%clk 0:02:24]}  Bxc6 {[%clk 0:02:38]} 15. gxf4 {[%clk 0:02:20]}  Bxb2 {[%clk 0:02:31]} 16. Qxb2 {[%clk 0:02:19]}  Qf6 {[%clk 0:02:31]} 17. Qxf6 {[%clk 0:02:15]}  Rxf6 {[%clk 0:02:29]} 18. Ng5 {[%clk 0:02:11]}  Nxg5 {[%clk 0:02:29]} 19. fxg5 {[%clk 0:02:10]}  Rg6 {[%clk 0:02:28]} 20. h4 {[%clk 0:02:08]}  Bxg2 {[%clk 0:02:26]} 21. Kxg2 {[%clk 0:02:08]}  h6 {[%clk 0:02:27]} 22. f4 {[%clk 0:02:08]}  e5 {[%clk 0:02:26]} 23. fxe5 {[%clk 0:02:07]}  hxg5 {[%clk 0:02:26]} 24. Rxf5 {[%clk 0:02:07]}  gxh4+ {[%clk 0:02:26]} 25. Kh3 {[%clk 0:02:04]}  Re8 {[%clk 0:02:20]} 26. Kxh4 {[%clk 0:01:59]}  dxe5 {[%clk 0:02:18]} 27. Rd1 {[%clk 0:01:55]}  Re7 {[%clk 0:02:17]} 28. Rd8+ {[%clk 0:01:49]}  Kg7 {[%clk 0:02:16]} 29. Rg5 {[%clk 0:01:42]}  Rxg5 {[%clk 0:02:11]} 30. Kxg5 {[%clk 0:01:42]}  Rf7 {[%clk 0:02:10]} 31. a4 {[%clk 0:01:34]}  a5 {[%clk 0:02:09]} 32. Rd5 {[%clk 0:01:26]}  Re7 {[%clk 0:01:47]} 33. Rxa5 {[%clk 0:01:23]}  b6 {[%clk 0:01:42]} 34. Rd5 {[%clk 0:01:20]}  e4 {[%clk 0:01:36]} 35. Kf4 {[%clk 0:01:18]}  Kf6 {[%clk 0:01:35]} 36. Rf5+ {[%clk 0:01:14]}  Kg6 {[%clk 0:01:35]} 37. Re5 {[%clk 0:01:12]}  Rd7 {[%clk 0:01:34]} 38. Rxe4 {[%clk 0:01:11]}  Rd2 {[%clk 0:01:32]} 39. Ke5 {[%clk 0:01:00]}  Rb2 {[%clk 0:01:29]} 40. Re3 {[%clk 0:00:53]}  Kg5 {[%clk 0:01:28]} 41. Kd5 {[%clk 0:00:45]}  Kf4 {[%clk 0:01:27]} 42. Rf3+ {[%clk 0:00:44]}  Kg4 {[%clk 0:01:26]} 43. Kc6 {[%clk 0:00:43]}  Rxe2 {[%clk 0:01:24]} 44. Rf6 {[%clk 0:00:36]}  Rb2 {[%clk 0:01:21]} 45. Kxc7 {[%clk 0:00:36]}  Rxb3 {[%clk 0:01:22]} 46. Rxb6 {[%clk 0:00:36]}  Rc3 {[%clk 0:01:17]} 47. Rb4 {[%clk 0:00:36]}  Kf5 {[%clk 0:01:15]} 48. a5 {[%clk 0:00:36]}  Ke5 {[%clk 0:01:16]} 49. a6 {[%clk 0:00:36]}  Ra3 {[%clk 0:01:15]} 50. Kb7 {[%clk 0:00:34]}  Kd4 {[%clk 0:01:13]} 51. a7 {[%clk 0:00:31]}  Kc5 {[%clk 0:01:11]} 52. Rb1 {[%clk 0:00:30]}  Kxc4 {[%clk 0:01:07]} 53. a8=Q {[%clk 0:00:26]}  Ra7+ {[%clk 0:01:06]} 1-0

[Event "December 12 Late 2023"]
[Site "https://www.chess.com"]
[Date "2023.12.12"]
[Round "6"]
[White "Nita, Lucian"]
[Black "Ghosh, Chanchal Kumer"]
[Result "0-1"]
[Board "114"]
[TimeControl "180+1"]
[WhiteFideId "1206923"]
[BlackFideId "10201858"]
[WhiteElo "2364"]
[BlackElo "2093"]
[WhiteTeam "ROU"]
[BlackTeam "BAN"]
[WhiteClock "0:01:11"]
[BlackClock "0:00:32"]

1. e4 {[%clk 0:03:00]}  c5 {[%clk 0:02:56]} 2. Nf3 {[%clk 0:02:59]}  d6 {[%clk 0:02:56]} 3. d3 {[%clk 0:02:59]}  Nf6 {[%clk 0:02:56]} 4. Nbd2 {[%clk 0:03:00]}  Nc6 {[%clk 0:02:56]} 5. g3 {[%clk 0:03:01]}  e6 {[%clk 0:02:57]} 6. Bg2 {[%clk 0:03:01]}  Be7 {[%clk 0:02:57]} 7. O-O {[%clk 0:03:02]}  O-O {[%clk 0:02:57]} 8. c3 {[%clk 0:03:03]}  d5 {[%clk 0:02:57]} 9. e5 {[%clk 0:03:02]}  Nd7 {[%clk 0:02:57]} 10. d4 {[%clk 0:03:03]}  f6 {[%clk 0:02:57]} 11. exf6 {[%clk 0:03:02]}  Nxf6 {[%clk 0:02:57]} 12. dxc5 {[%clk 0:03:02]}  Bxc5 {[%clk 0:02:57]} 13. Nb3 {[%clk 0:03:02]}  Bb6 {[%clk 0:02:57]} 14. Bg5 {[%clk 0:03:02]}  e5 {[%clk 0:02:45]} 15. Bxf6 {[%clk 0:02:57]}  Rxf6 {[%clk 0:02:44]} 16. a4 {[%clk 0:02:49]}  Bg4 {[%clk 0:02:37]} 17. h3 {[%clk 0:02:46]}  Bxf3 {[%clk 0:02:21]} 18. Bxf3 {[%clk 0:02:46]}  e4 {[%clk 0:02:20]} 19. Bg2 {[%clk 0:02:40]}  Ne5 {[%clk 0:02:16]} 20. Nd4 {[%clk 0:02:37]}  Bxd4 {[%clk 0:01:54]} 21. Qxd4 {[%clk 0:02:35]}  Qd6 {[%clk 0:01:41]} 22. Rad1 {[%clk 0:02:29]}  Nd3 {[%clk 0:01:02]} 23. Rd2 {[%clk 0:02:06]}  b6 {[%clk 0:01:00]} 24. f3 {[%clk 0:01:58]}  Raf8 {[%clk 0:00:47]} 25. fxe4 {[%clk 0:01:35]}  Rxf1+ {[%clk 0:00:41]} 26. Bxf1 {[%clk 0:01:35]}  Qxg3+ {[%clk 0:00:33]} 27. Rg2 {[%clk 0:01:11]}  Rxf1+ {[%clk 0:00:32]} 0-1